Cogmind - Beta 12 X1 @@@ ROGUE MODE // 2022.08.27 @ 15:44:12 Player: Decinym Result: Destroyed by Y-45 Defender with Beam Rifle Performance ------------- Evolutions (1) 500 Regions Visited (4) 800 Robots Destroyed (57) 285 Value Destroyed (1678) 1678 Prototype IDs (5) 100 Alien Tech Used (0) 0 Bonus (196) 196 TOTAL SCORE: 3559 Bonus ------- High Alert Combat Kills 138 Follower Combat Kills 58 Cogmind --------- Core Integrity 0/400 Matter 300/300 Energy 280/280 System Corruption 3% Temperature Cool (27) Movement Treading (160) Location -9/Storage Parts ------- > --- POWER (1) -------- Heavy Ion Engine > --- PROPULSION (2) --- Light Treads Light Treads > --- UTILITY (4) ------ Medium Storage Unit Advanced Targeting Computer Improved Light Armor Plating Improved Light Armor Plating > --- WEAPON (2) ------- Improved Assault Rifle Improved Assault Rifle > --- INVENTORY (10) --- Light Treads High-capacity Matter Pod (200) Structural Scanner Experimental Sensor Array Hacking Suite Improved Assault Rifle Improved Assault Rifle Grenade Launcher Plasma Cutter Great Maul Peak State ------------ > --- POWER ------------ Heavy Ion Engine > --- PROPULSION ------- Light Treads Light Treads > --- UTILITY ---------- Improved Heat Sink Medium Storage Unit Advanced Targeting Computer Improved Light Armor Plating > --- WEAPON ----------- Improved EM Shotgun Improved EM Shotgun > --- INVENTORY -------- Heavy Ion Engine Light Treads High-capacity Matter Pod Experimental Sensor Array Improved Light Armor Plating Improved Light Armor Plating Hacking Suite Improved EM Shotgun Light EM Pulse Cannon Great Maul [Rating: 24] Favorites ----------- Power Heavy Ion Engine Engine Heavy Ion Engine Propulsion Light Treads Treads Light Treads Leg Aluminum Leg Utility Medium Storage Unit Device Heat Sink Storage Medium Storage Unit Processor Advanced Targeting Computer Protection Improved Light Armor Plating Weapon Improved EM Shotgun Energy Gun Improved EM Shotgun Ballistic Gun Improved Assault Rifle Impact Weapon Great Maul Build | -11 -10 -10 -9 -9 ------- Run | Scr Mat Min Mat Sto Slots Evolved 2 | . . . 2 . Power . | . . . . . Propulsion . | . . . . . Utility 2 | . . . 2 . Weapon . | . . . . . Parts Attached 43 | . . 6 20 17 Power 4 | . . 1 2 1 Engine 4 | . . 1 2 1 Core . | . . . . . Reactor . | . . . . . Propulsion 11 | . . 1 6 4 Treads 9 | . . . 5 4 Leg 2 | . . 1 1 . Wheel . | . . . . . Hover . | . . . . . Flight . | . . . . . Utility 14 | . . 3 7 4 Device 5 | . . 2 2 1 Storage 1 | . . 1 . . Processor 1 | . . . 1 . Hackware . | . . . . . Protection 7 | . . . 4 3 Artifact . | . . . . . Weapon 14 | . . 1 5 8 Energy Gun 9 | . . 1 5 3 Energy Cannon . | . . . . . Ballistic Gun 4 | . . . . 4 Ballistic Cannon . | . . . . . Launcher . | . . . . . Special Weapon . | . . . . . Impact Weapon 1 | . . . . 1 Slashing Weapon . | . . . . . Piercing Weapon . | . . . . . Special Melee Weapon . | . . . . . Unidentified Prototypes 5 | . . 1 2 2 Corrupted Parts 1 | . . . . 1 System Corruption 3 | . . . . 3 Parts Lost 1 | . . 1 . . Power . | . . . . . Propulsion . | . . . . . Utility . | . . . . . Weapon 1 | . . 1 . . Highest Loss Streak 1 | . . 1 . . To Critical Strikes . | . . . . . Average Slot Usage (%) 95 | . 85 87 97 99 Engine 11 | . 14 14 11 11 Treads 16 | . . . 19 22 Leg 7 | . 28 28 2 . Device 6 | . . 2 11 5 Storage 11 | . 14 14 11 11 Processor 4 | . . . . 11 Protection 13 | . . . 19 16 Energy Gun 12 | . . 2 20 11 Ballistic Gun 9 | . 28 24 1 9 Naked Turns . | . . . . . Heaviest Build 31 | 13 13 23 31 31 Greatest Support 40 | 20 20 20 40 40 Greatest Overweight (x) 1 | . . 1 . . Average Overweight (x) . | . . . . . Largest Inventory Capacity 10 | . 8 10 10 10 Average Capacity 9 | . 8 9 10 10 Most Carried 10 | . 6 10 10 10 Average Carried 9 | . 6 8 9 9 Final Capacity 10 | 8 8 10 10 10 Final Carried 10 | 6 6 10 10 10 Class Distribution -------------------- 91% | Mutant 8% | Scavenger-Mutant Dominant Class ---------------- Mutant | -10/Materials Mutant | -10/Mines Mutant | -9/Materials Mutant | -9/Storage Resources | -11 -10 -10 -9 -9 ----------- Run | Scr Mat Min Mat Sto Matter Collected 891 | 200 . 144 207 340 Remotely . | . . . . . Salvage Created 2233 | . . 248 609 1376 Parts 136 | . . 13 33 90 Haulers Intercepted 2 | . . . 2 . Recyclers Shooed 1 | . . . 1 . Parts Field Recycled . | . . . . . Retrieved Matter . | . . . . . Parts Self-Destructed . | . . . . . Prevented . | . . . . . Kills | -11 -10 -10 -9 -9 ------- Run | Scr Mat Min Mat Sto Combat Hostiles Destroyed 48 | . . 8 13 27 Guns 46 | . . 8 13 25 AOE 1 | . . . . 1 Classes Destroyed 10 | . . 3 4 3 Builder 2 | . . . . 2 Hauler 2 | . . . 2 . Recycler 1 | . . 1 . . Mechanic 1 | . . . . 1 Operator 2 | . . . 1 1 Watcher 1 | . . . 1 . Swarmer 11 | . . 6 5 . Grunt 25 | . . 2 3 20 Duelist 1 | . . . . 1 Sentry 11 | . . . 5 6 Best Kill Streak 8 | . . 7 4 8 Combat Bots Only 7 | . . 6 4 7 Max Kills in Single Turn 2 | . . 2 2 1 Gunslinging 1 | . . . 1 . Exploded 1 | . . . . 1 Melee . | . . . . . Uniques/NPCs Destroyed . | . . . . . Combat | -11 -10 -10 -9 -9 -------- Run | Scr Mat Min Mat Sto Damage Taken 2494 | . . 451 740 1303 Core 476 | . . 63 159 254 Absorbed by Shields 70 | . . . . 70 Redirected to Shielding 71 | . . . 71 . Core Remaining (%) 87 | 100 . 74 . . Volleys Fired 143 | . . 24 55 64 Largest 2 | . . 2 2 2 Hottest 96 | . . 60 96 90 Shots Fired 283 | . . 48 109 126 Gun 283 | . . 48 109 126 Cannon . | . . . . . Launcher . | . . . . . Special . | . . . . . Kinetic 100 | . . 39 7 54 Thermal 105 | . . 9 96 . Explosive . | . . . . . Electromagnetic 78 | . . . 6 72 Robot Hit Streak 19 | . . 5 19 18 Robot Miss Streak 5 | . . 5 3 2 Penetration Max . | . . . . . Secondary Targets 9 | . . 2 1 6 Max Gunslinging Chain 1 | . . 1 1 1 Shots Hit Robots 206 | . . 25 74 107 Core Hits 107 | . . 13 31 63 Critical Kills . | . . . . . Critical Parts Destroyed . | . . . . . Critical Strikes . | . . . . . Melee Attacks 3 | . . . . 3 Impact 3 | . . . . 3 Slashing . | . . . . . Piercing . | . . . . . Sneak Attacks . | . . . . . Combat Hostiles . | . . . . . Follow-up Attacks . | . . . . . Damage Inflicted 3161 | . . 304 885 1972 Guns 2912 | . . 304 885 1723 Cannons . | . . . . . Explosions 244 | . . . . 244 Melee . | . . . . . Ramming 5 | . . . . 5 Kinetic 861 | . . 246 15 600 Thermal 1105 | . . 58 803 244 Explosive . | . . . . . Electromagnetic 1190 | . . . 67 1123 Impact . | . . . . . Slashing . | . . . . . Piercing . | . . . . . Highest Corruption 3 | . . . . 3 Average Corruption 3 | . . . . 3 Corruption Purged . | . . . . . Corruption Blocked . | . . . . . Effects 9 | . . . . 9 Message Errors 5 | . . . . 5 Matter Fused 1 | . . . . 1 Heat Flow Errors 1 | . . . . 1 Energy Discharges 2 | . . . . 2 Overload Shots . | . . . . . Overflow Damage . | . . . . . Projectiles . | . . . . . Explosions . | . . . . . Melee . | . . . . . Knockbacks . | . . . . . Impact . | . . . . . Kinetic . | . . . . . Secondary . | . . . . . Self-Inflicted Damage 120 | . . . . 120 Shots 4 | . . . . 4 Rammed . | . . . . . Targets Rammed 1 | . . . . 1 Kicked . | . . . . . Crushed 1 | . . . . 1 Highest Temperature 128 | . . 30 45 128 Average Temperature 32 | . . 12 17 43 Received Heat Transfer 941 | . . 192 192 557 Siege Activations . | . . . . . Robots Corrupted 1 | . . . . 1 Combat Hostiles 1 | . . . . 1 Parts Fried 7 | . . . . 7 Impact Corruptions . | . . . . . Robots Melted . | . . . . . Combat Hostiles . | . . . . . Parts Melted 7 | . . . 7 . Heat Transferred 2306 | . . 125 1907 274 Parts Sabotaged . | . . . . . Parts Stolen . | . . . . . Parts Stripped . | . . . . . Power Chain Reactions 5 | . . . . 5 Missiles Intercepted . | . . . . . Alert | -11 -10 -10 -9 -9 ------- Run | Scr Mat Min Mat Sto Peak Influence 658 | . 7 187 368 658 Initial 155 | . . 2 72 155 Average 260 | . 6 24 221 431 Maximum Alert Level 2 | . . . 1 2 Low Security (%) 39 | . 100 100 37 8 Level 1 32 | . . . 62 23 Level 2 27 | . . . . 68 Level 3 . | . . . . . Level 4 . | . . . . . Level 5 . | . . . . . High Security . | . . . . . Max Security . | . . . . . Squads Dispatched 8 | . 1 . 1 6 Investigation 2 | . 1 . . 1 Extermination . | . . . . . Reinforcement 2 | . . . 1 1 Assault 3 | . . . . 3 Garrison 1 | . . . . 1 Intercept . | . . . . . Searches Triggered . | . . . . . Construction Impeded . | . . . . . Haulers Reinforced . | . . . . . Active Scanning Responses . | . . . . . Cargo Convoy Interrupts . | . . . . . Stealth | -11 -10 -10 -9 -9 --------- Run | Scr Mat Min Mat Sto Distress Signals 4 | . . . 2 2 Communications Jammed . | . . . . . Distress Signals . | . . . . . Times Spotted 65 | . . 8 23 34 Peak Tracking Total 8 | . . 6 6 8 Tactical Retreats 1 | . . . 1 . Traps | -11 -10 -10 -9 -9 ------- Run | Scr Mat Min Mat Sto Traps Triggered 1 | . . . . 1 Indirectly . | . . . . . Trap Hack Attempts . | . . . . . Triggered . | . . . . . Disarmed . | . . . . . Reprogrammed . | . . . . . Reused . | . . . . . Traps Extracted . | . . . . . Installed . | . . . . . Triggered . | . . . . . Machines | -11 -10 -10 -9 -9 ---------- Run | Scr Mat Min Mat Sto Machines Disabled 3 | . . . . 3 Max in Single Turn 1 | . . . . 1 Machines Sabotaged . | . . . . . Garrisons Compromised . | . . . . . Overloaded Fab Kills . | . . . . . Hacking | -11 -10 -10 -9 -9 --------- Run | Scr Mat Min Mat Sto Machines Accessed 7 | . 2 . 1 4 Terminals 7 | . 2 . 1 4 Fabricators . | . . . . . Repair Stations . | . . . . . Recycling Units . | . . . . . Scanalyzers . | . . . . . Garrison Access . | . . . . . Total Hacks 20 | . 7 . 2 11 Successful 6 | . 2 . . 4 Failed 14 | . 5 . 2 7 Catastrophic 2 | . 1 . . 1 Database Lockouts . | . . . . . Manual 17 | . 6 . 2 9 Terminals 20 | . 7 . 2 11 Fabricators . | . . . . . Repair Stations . | . . . . . Recycling Units . | . . . . . Scanalyzers . | . . . . . Garrison Access . | . . . . . Terminal Hacks 4 | . 1 . . 3 Open Door 2 | . . . . 2 Branch Access Points 1 | . 1 . . . Unreport Threat 1 | . . . . 1 Fabricator Hacks . | . . . . . Repair Station Hacks . | . . . . . Recycling Unit Hacks . | . . . . . Scanalyzer . | . . . . . Garrison Access Hacks . | . . . . . Unauthorized Hacks 2 | . 1 . . 1 Terminals 2 | . 1 . . 1 Botnet 2 | . 1 . . 1 Fabricators . | . . . . . Repair Stations . | . . . . . Recycling Units . | . . . . . Scanalyzers . | . . . . . Garrison Access . | . . . . . Data Cores Recovered . | . . . . . Used . | . . . . . Hacking Detections 5 | . 2 . 1 2 Full Trace Events 2 | . 1 . . 1 Feedback Events . | . . . . . Feedback Blocked . | . . . . . Robot Schematics Acquired . | . . . . . Robots Built . | . . . . . Authchips . | . . . . . Time . | . . . . . Total Robot Build Rating . | . . . . . Part Schematics Acquired . | . . . . . Parts Built . | . . . . . Authchips . | . . . . . Time . | . . . . . Total Part Build Rating . | . . . . . Parts Repaired . | . . . . . Time . | . . . . . Parts Recycled . | . . . . . Recycled Matter . | . . . . . Retrieved Matter . | . . . . . Retrieved Components . | . . . . . Parts Scanalyzed . | . . . . . Part Schematics Acquired . | . . . . . Parts Damaged . | . . . . . Bothacking | -11 -10 -10 -9 -9 ------------ Run | Scr Mat Min Mat Sto Used RIF Installer . | . . . . . Robots Hacked . | . . . . . Non-combat . | . . . . . Combat . | . . . . . Robot Hacks Applied . | . . . . . Relay Couplers Released . | . . . . . Fabnet Peak Effective % . | . . . . . Robots Rewired 1 | . . . . 1 Allies Hacked . | . . . . . Hacks Repelled . | . . . . . Allies | -11 -10 -10 -9 -9 -------- Run | Scr Mat Min Mat Sto Total Allies 3 | . . . . 3 Largest Group 2 | . . . . 2 Highest-Rated Group 62 | . . . . 62 Highest-Rated Ally 31 | . . . . 31 Total Orders . | . . . . . Ally Attacks 10 | . . . . 10 Total Damage 172 | . . . . 172 Kills 3 | . . . . 3 Allies Corrupted . | . . . . . Allies Melted . | . . . . . Intel | -11 -10 -10 -9 -9 ------- Run | Scr Mat Min Mat Sto Robot Analysis Total . | . . . . . Derelict Logs Recovered 1 | . . 1 . . Drone Launches . | . . . . . Drone Recoveries . | . . . . . Exploration | -11 -10 -10 -9 -9 ------------- Run | Scr Mat Min Mat Sto Turns Passed 2033 | . 66 398 750 819 Spaces Moved 994 | 1 56 266 324 347 Core . | . . . . . Treads 637 | . . . 290 347 Legs 357 | 1 56 266 34 . Wheels . | . . . . . Hover . | . . . . . Flight . | . . . . . Fastest Speed 120 | 120 120 120 120 160 Average Speed 145 | 120 120 120 155 160 Slowest Speed 190 | 120 120 190 160 160 Overloaded Moves . | . . . . . Propulsion Burnouts . | . . . . . Robots Hopped . | . . . . . Cave-ins Triggered . | . . . . . Exploration Rate (%) 30 | 2 21 45 33 49 Regions Visited 4 Branch Regions 2 Pre-discovered Areas . | . . . . . Known Exits Taken 2 | . 1 . 1 . Unknown Exits Taken 2 | 1 . 1 . . Scrap Searched . | . . . . . Spaces Dug . | . . . . . Terrain Destroyed 14 | . . . . 14 Melee . | . . . . . Projectile . | . . . . . AOE 14 | . . . . 14 Terrain Rammed . | . . . . . Walls Destroyed . | . . . . . Machines Disabled . | . . . . . Actions | -11 -10 -10 -9 -9 --------- Run | Scr Mat Min Mat Sto Total 1303 | . 55 299 468 481 Wait 61 | . . . 36 25 Move 990 | . 55 265 323 347 Hop . | . . . . . Pick Up 19 | . . 2 10 7 Fast Attach 19 | . . 3 10 6 Attach 9 | . . 1 4 4 Detach 2 | . . 1 1 . Swap 15 | . . 2 6 7 Drop 40 | . . 1 23 16 Fire 143 | . . 24 55 64 Melee 3 | . . . . 3 Ram . | . . . . . Kick . | . . . . . Crush 1 | . . . . 1 Escape Stasis . | . . . . . Rewire 1 | . . . . 1 Trap . | . . . . . Miscellaneous . | . . . . . Route ------- -11/Scrapyard -10/Materials (discovered 2 exits: *Min x2) -10/Mines -9/Materials (discovered 3 exits: [*Mat] / [*Min] / *Sto) -9/Storage History --------- Turn | Location | Event 1 | -11/Scrapyard | Discovered new exit (range 0) 1 | -11/Scrapyard | Entered Materials 6 | -10/Materials | Identified exit to Mines 67 | -10/Materials | Entered Mines 309 | -10/Mines | Build established: Mutant 327 | -10/Mines | Discovered new exit (range 8) 339 | -10/Mines | Found a damaged Exp. Sensor Array with a note attached 387 | -10/Mines | Found Prototype Device 387 | -10/Mines | Identified Exp. Sensor Array 465 | -10/Mines | Entered Materials 465 | -9/Materials | Evolved 2 slots: Utility x2 466 | -9/Materials | Identified exit to Storage 620 | -9/Materials | Discovered new exit (range 10) 771 | -9/Materials | Discovered new exit (range 7) 1215 | -9/Materials | Entered Storage 1262 | -9/Storage | Core integrity fell below 50% 1277 | -9/Storage | Met a pair of Derelict thieves 1417 | -9/Storage | Destroyed 7 combat bots 1675 | -9/Storage | Core integrity fell below 20% 1979 | -9/Storage | Garrison activated, responded to threat 2015 | -9/Storage | First assault squad dispatched 2034 | -9/Storage | Destroyed by Y-45 Defender with Beam Rifle Last Messages --------------- 01967_ U-05 Engineer builds a Door. 01979_ G-34 Mercenary calls for garrison reinforcements. 01979_ ALERT: Activating Garrison Access S001. 01982_ G-34 Mercenary destroyed. 01987_ K-01 Serf collects debris. 01988_ G-34 Mercenary destroyed. 01993_ K-01 Serf collects debris. 01994_ G-34 Mercenary destroyed. 01997_ Acquired 42 matter. 02001_ K-01 Serf collects debris. 02006_ G-34 Mercenary destroyed. 02012_ K-01 Serf collects debris. 02015_ ALERT: Significant disruption in Zone 3F, assault force dispatched. 02015_ K-01 Serf cleans the Transfer Shaft. 02015_ G-34 Mercenary destroyed. 02017_ J1IZGGEBKN<5S DLUVSM3>LVPQJBA8X1J DSO4 02019_ K-01 Serf collects debris. 02021_ Acquired 24 matter. 02022_ K-01 Serf collects debris. 02034_ Critical hit (Burn: +37). Map ----- +----------------------------------------------------+ | ??????###########* ## ## # | | ??????# + ####+##+## | | ??????# """ # =! | | ????????"["""" # =%* ! | | ????????"! ! ##########+## %! | | ????????"]""!" ## [/ *## # | | ????????""?"]" ## "" =%! ## # | | ???????????""" ## "T /[ ## # | | ????????????? # "" ![ + # | | ?????????????##### !% ## | | ?????????????????#+####"T"####+## | | ?????????????????# #??#"""#???? ? | | ?????????????????# #??#####???? | | ??????????????#### #?####??????? | | ?????????????? ##=#?"""#??????? | | ???#"?"???????# ##%#""R"#???????? | | ????"R"???????# ##+#"" "###?????? | | ??##" "######?# #*%*= #?????? | | ??# #?# #*!% #?????? | | ??# """ """ ### # != #?????? | | ?## """ """ # # #?????? | | ?# """ """ + %"=""" """ #?????? | | ??# Y # *%#=""" """ #?????? | | ??# # [# """ """ #?????? | | ??# # # ??????? | | ??# @ # #########???????? | | ??####" "#### #???????????????? | | ?????#"G"#??# #???????????????? | | ?????#"""#??# #???????????????? | | ?????#####??# #???????????????? | | ????????????# #???????????????? | | ????????????# #???????????????? | | ????????????# #???????????????? | | ????????????# #???????????????? | | ????????????# #???????????????? | | ????????????# #???????????????? | | ????????????? ????????????????? | | ????????????????????????????????? | | ????????????????????????????????? | | ????????????????????????????????? | | ????????????????????????????????? | | ????????????????????????????????? | | ????????????????????????????????? | | ????????????????????????????????? | | ????????????????????????????????? | | ????????????????????????????????? | | ????????????????????????????????? | | ????????????????????????????????? | | ????????????????????????????????? | | ????????????????????????????????? | +----------------------------------------------------+ Best States ------------- Heat Dissipation 42 Energy Generation 14 Energy Capacity 280 Matter Stores 300 Matter Capacity 300 Sight Range 16 Terrain Scan Density 10 Armor Coverage 300 Propulsion Shielding 33 Evasion (%) 55 Targeting Accuracy 8 Recoil Reduction 2 Item Schematics ----------------- None Robot Schematics ------------------ None Fabricated ------------ Nothing Alien Tech Used ----------------- None Achievements -------------- None Challenges ------------ None Game ------ Seed NavigationHugePit Manual? 0 Play Time 00:18:42 Cumulative 397.3 hours Start 2022.08.27 @ 15:30:59 End 2022.08.27 @ 15:44:12 Sessions 1 Manual Loads 0 Difficulty Rogue Special Mode None Game No. 412 Rogue 412 Adventurer 0 Explorer 0 Win Type - Total 31 Types 18/3/3/1/2/1/3/0/0 Lore% 91 Gallery% 92 Achievement% 81 Wizard Run 0 Options --------- ASCII 0 Keyboard 0 Movement Mouse Keybinds 0 Fullscreen 2 Font 24/Smallcaps Map View 76x50 Tactical HUD 1 Map Filters NONE Filters NONE Steam 1 RUN: 5e0278b4-ce41-42de-8d68-2e90b9fc20e1